Cogmind - Beta 15 @@@ ROGUE MODE // 2025.07.14 @ 21:18:24 Player: daxter767676 Result: Destroyed by Y-64 Sentinel with Wave Gun Performance ------------- Evolutions (6) 3000 Regions Visited (7) 1400 Robots Destroyed (40) 200 Value Destroyed (1316) 1316 Prototype IDs (4) 80 Alien Tech Used (0) 0 Bonus (1040) 1040 TOTAL SCORE: 7036 Bonus ------- Follower Combat Kills 40 Entered Garrisons 200 Registered with UFD 300 Met Optimus in HQ 500 Cogmind --------- Core Integrity 0/1150 Matter 290/300 Energy 84/100 System Corruption 1% Temperature Cool (27) Movement Flying (35) Location -4/Garrison Parts ------- > --- POWER (2) -------- (None) > --- PROPULSION (4) --- VTOL Module > --- UTILITY (10) ----- Enhanced Optical Array Advanced Signal Interpreter Improved Terrain Scan Processor Improved Target Analyzer > --- WEAPON (3) ------- (None) > --- INVENTORY (5) ---- Neutrino Core Scrap Suit Scrapoid Pod Peak State ------------ > --- POWER ------------ Light Nuclear Core Angular Momentum Engine > --- PROPULSION ------- Overtuned Scrapsphere Overtuned Scrapsphere Armored Huge Wheel > --- UTILITY ---------- Scrap Suit Experimental Heat Sink Humpback Improved Terrain Scanner Improved Terrain Scan Processor Hacking Suite > --- WEAPON ----------- Ripper Makeshift Sword Great Axe > --- INVENTORY -------- Scrap Suit Scrap Suit High-capacity Storage Unit Advanced Weight Redist. System Advanced Weight Redist. System Structural Scanner Machine Analyzer Enhanced Optical Array Advanced Melee Analysis Suite Core Analyzer Improved Utility Shielding Makeshift Utility Shielding Makeshift Utility Shielding Makeshift Utility Shielding Improved Light Armor Plating Makeshift Light Armor Plating Authchip [R/Combat] Authchip [Device] Authchip [Device] Authchip [Processor] Authchip [Armor] Scrapoid Pod Plasma Cannon Grenade Launcher Long-range Missile Launcher DRS Beacon [Rating: 71] Favorites ----------- Power Light Ion Engine Engine Light Ion Engine Power Core Light Nuclear Core Propulsion Overtuned Scrapsphere Leg Aluminum Leg Wheel Overtuned Scrapsphere Hover Unit Antigrav System Flight Unit VTOL Module Utility Structural Scanner Device Structural Scanner Storage High-capacity Storage Unit Processor Improved Terrain Scan Processor Hackware Hacking Suite Protection Improved Utility Shielding Weapon Makeshift Sword Energy Gun Small Laser Ballistic Gun Barrage Gun Ballistic Cannon Battle Cannon Launcher Long-range Missile Launcher Special Weapon Mining Laser Slashing Weapon Makeshift Sword Build | -11 -10 -10 -7 -7 -5 -4 -4 ------- Run | Yrd Mat Sub Rec Scr Fac Fac Gar Slots Evolved 12 | . . . . . 10 2 . Power 1 | . . . . . 1 . . Propulsion 2 | . . . . . 2 . . Utility 8 | . . . . . 6 2 . Weapon 1 | . . . . . 1 . . Parts Attached 60 | 1 13 6 2 8 21 5 4 Power 10 | . 3 1 . 2 1 . 3 Engine 5 | . 3 1 . 1 . . . Core 5 | . . . . 1 1 . 3 Reactor . | . . . . . . . . Propulsion 16 | . 3 . 1 4 4 3 1 Treads . | . . . . . . . . Leg 4 | . 1 . . . . 3 . Wheel 7 | . 2 . 1 4 . . . Hover 4 | . . . . . 4 . . Flight 1 | . . . . . . . 1 Utility 20 | 1 2 1 1 1 12 2 . Device 7 | 1 2 1 . . 3 . . Storage 2 | . . . 1 1 . . . Processor 7 | . . . . . 6 1 . Hackware 1 | . . . . . 1 . . Protection 3 | . . . . . 2 1 . Artifact . | . . . . . . . . Weapon 14 | . 5 4 . 1 4 . . Energy Gun 4 | . 3 . . . 1 . . Energy Cannon . | . . . . . . . . Ballistic Gun 3 | . 1 2 . . . . . Ballistic Cannon 1 | . . 1 . . . . . Launcher 1 | . . . . . 1 . . Special Weapon 2 | . 1 . . . 1 . . Impact Weapon . | . . . . . . . . Slashing Weapon 3 | . . 1 . 1 1 . . Piercing Weapon . | . . . . . . . . Special Melee Weapon . | . . . . . . . . Unidentified Prototypes 4 | . . 1 . . 2 1 . Parts Lost 27 | . 1 1 . . 15 1 9 Power 5 | . . 1 . . 3 . 1 Propulsion 7 | . . . . . 5 . 2 Utility 9 | . . . . . 4 1 4 Weapon 6 | . 1 . . . 3 . 2 Highest Loss Streak 9 | . 1 1 . . 9 1 7 To Critical Strikes . | . . . . . . . . Average Backups 15 | 6 8 8 15 20 19 3 2 Power . | 1 1 1 1 . . . . Propulsion 1 | 4 3 1 1 1 . . . Utility 11 | . 1 3 10 15 16 1 1 Weapon 2 | 1 1 2 2 2 2 . . Tool/Special . | . . . . . . . . Unused Backups 37 | 6 2 4 . 6 17 . 2 Power 2 | 1 . . . 1 . . . Propulsion 6 | 2 2 1 . 1 . . . Utility 24 | 1 . 3 . 4 15 . 1 Weapon 4 | 2 . . . . 2 . . Tool/Special 1 | . . . . . . . 1 Average Slot Usage (%) 86 | . 98 99 87 90 71 53 46 Engine 9 | . 14 13 14 10 3 . . Core 2 | . . . . 3 3 . . Leg 2 | . 16 . . . . 5 6 Wheel 18 | . 11 28 16 23 11 . . Device 10 | . 14 14 14 9 10 2 . Storage 11 | . 14 14 14 14 3 . . Processor 3 | . . . . . 11 27 30 Energy Gun 3 | . 23 2 . . . . . Ballistic Gun 3 | . . 12 14 2 . . . Slashing Weapon 15 | . . 6 14 25 12 5 2 Peak Build Rating 71 | 9 9 15 24 35 71 63 63 Average Rating 28 | 6 7 12 21 25 60 56 49 On Entrance 26 | 6 9 8 14 24 35 50 63 Naked Turns . | . . . . . . . . Heaviest Build 235 | 14 15 17 49 219 235 13 13 Greatest Support 45 | 20 26 26 28 28 45 36 36 Greatest Overweight (x) 72 | . 1 . 1 72 69 . 2 Average Overweight (x) 2 | . . . . 4 4 . . Largest Inventory Capacity 35 | 8 8 8 20 35 35 5 5 Average Capacity 19 | 8 8 8 17 24 27 5 5 Most Carried 35 | 8 8 8 20 35 34 5 5 Average Carried 17 | 6 7 7 15 22 23 5 4 Final Capacity 35 | 8 8 8 20 35 5 5 5 Final Carried 35 | 8 8 8 20 35 5 5 5 Class Distribution -------------------- 66% | Mutant 22% | Hauler-Mutant 6% | Hauler-Gladiator Dominant Class ---------------- Mutant | -10/Materials Mutant | -10/Subcaves Mutant | -7/Recycling Mutant | -7/Scraptown Hauler-Mutant | -5/Factory Mutant | -4/Factory Mutant | -4/Garrison Resources | -11 -10 -10 -7 -7 -5 -4 -4 ----------- Run | Yrd Mat Sub Rec Scr Fac Fac Gar Matter Collected 958 | 210 120 179 40 80 216 . 113 Remotely . | . . . . . . . . Salvage Created 1299 | 135 369 111 . . 598 . 86 Parts 72 | 8 27 9 . . 23 . 5 Haulers Intercepted 1 | . 1 . . . . . . Recyclers Shooed . | . . . . . . . . Parts Field Recycled . | . . . . . . . . Retrieved Matter . | . . . . . . . . Parts Self-Destructed 3 | . . 3 . . . . . Prevented . | . . . . . . . . Kills | -11 -10 -10 -7 -7 -5 -4 -4 ------- Run | Yrd Mat Sub Rec Scr Fac Fac Gar Combat Hostiles Destroyed 32 | . 14 5 . . 10 . 3 Melee 7 | . . . . . 4 . 3 Guns 16 | . 11 4 . . 1 . . Cannons 1 | . . 1 . . . . . AOE 8 | . 3 . . . 5 . . Classes Destroyed 10 | 2 3 1 . . 4 . . Tunneler 3 | 3 . . . . . . . Hauler 1 | . 1 . . . . . . Recycler 2 | 1 . . . . 1 . . Operator 1 | . . . . . 1 . . Watcher 1 | . . . . . 1 . . Swarmer 15 | . 9 3 . . . . 3 Grunt 11 | . 5 . . . 6 . . Duelist 1 | . . . . . 1 . . Programmer 3 | . . . . . 3 . . Subdweller 2 | . . 2 . . . . . Best Kill Streak 5 | 2 3 3 . . 5 . 2 Combat Bots Only 5 | . 3 3 . . 5 . 2 Max Kills in Single Turn 2 | 1 2 1 . . 2 . 1 Gunslinging . | . . . . . . . . Exploded 2 | . 2 . . . 2 . . Melee 1 | . . . . . 1 . 1 Uniques/NPCs Destroyed . | . . . . . . . . Combat | -11 -10 -10 -7 -7 -5 -4 -4 -------- Run | Yrd Mat Sub Rec Scr Fac Fac Gar Hostile Shots Fired 431 | . 63 21 . . 166 58 123 Missed 142 | . 25 8 . . 58 27 24 Hits 289 | . 38 13 . . 108 31 99 Melee 1 | . . . . . 1 . . Projectile 288 | . 38 13 . . 107 31 99 AOE 5 | . . . . . 5 . . Critical Strikes 7 | . . . . . 5 . 2 Damage Taken 5660 | . 405 197 . . 2668 486 1904 Core 2198 | . 91 7 . . 929 136 1035 Absorbed by Shields . | . . . . . . . . Redirected to Shielding 84 | . . . . . 26 27 31 Regen/Repaired (Parts) 60 | . . . . . 20 40 . Core Remaining (%) 55 | 100 . . . 60 7 . . Volleys Fired 96 | 15 45 14 . . 22 . . Largest 2 | 2 2 2 . . 1 . . Hottest 100 | 80 100 70 . . 80 . . Shots Fired 131 | 18 63 28 . . 22 . . Gun 103 | 18 47 21 . . 17 . . Cannon 7 | . . 7 . . . . . Launcher 5 | . . . . . 5 . . Special 16 | . 16 . . . . . . Kinetic 21 | . . 21 . . . . . Thermal 94 | 15 55 7 . . 17 . . Explosive 5 | . . . . . 5 . . Electromagnetic 11 | 3 8 . . . . . . Robot Hit Streak 11 | 7 8 11 . . 5 . . Robot Miss Streak 3 | 2 3 2 . . 2 . . Penetration Max . | . . . . . . . . Secondary Targets . | . . . . . . . . Shots Hit Robots 105 | 12 31 19 . . 40 . 3 Core Hits 61 | 5 17 7 . . 26 . 6 Critical Kills 1 | . . . . . 1 . . Critical Parts Destroyed 1 | . . . . . 1 . . Critical Strikes 9 | . 1 . . . 8 . . Burn 1 | . 1 . . . . . . Destroy 2 | . . . . . 2 . . Sever 6 | . . . . . 6 . . Melee Attacks 67 | . . 4 2 . 46 1 14 Impact . | . . . . . . . . Slashing 67 | . . 4 2 . 46 1 14 Piercing . | . . . . . . . . Sneak Attacks 1 | . . . . . 1 . . Combat Hostiles . | . . . . . . . . Follow-up Attacks 12 | . . . . . 12 . . Damage Inflicted 3133 | 136 509 277 . . 1998 . 213 Guns 1049 | 136 394 231 . . 288 . . Cannons 46 | . . 46 . . . . . Explosions 855 | . 115 . . . 740 . . Melee 1080 | . . . . . 970 . 110 Ramming 103 | . . . . . . . 103 Kinetic 201 | . . 201 . . . . . Thermal 894 | 109 421 76 . . 288 . . Explosive 740 | . . . . . 740 . . Electromagnetic 115 | 27 88 . . . . . . Impact . | . . . . . . . . Slashing 1080 | . . . . . 970 . 110 Piercing . | . . . . . . . . Highest Corruption 10 | . . . . . 10 . 1 Average Corruption 5 | . . . . . 5 . 1 Corruption Purged . | . . . . . . . . Corruption Blocked . | . . . . . . . . Effects 20 | . . . . . 20 . . Message Errors 7 | . . . . . 7 . . Matter Fused 3 | . . . . . 3 . . Heat Flow Errors 2 | . . . . . 2 . . Energy Discharges 3 | . . . . . 3 . . Data Loss (minor) 4 | . . . . . 4 . . Data Loss (major) 1 | . . . . . 1 . . Overload Shots . | . . . . . . . . Overflow Damage 29 | . . . . . 24 . 5 Projectiles . | . . . . . . . . Explosions 19 | . . . . . 19 . . Melee 10 | . . . . . 5 . 5 Knockbacks . | . . . . . . . . Impact . | . . . . . . . . Kinetic . | . . . . . . . . Secondary . | . . . . . . . . Self-Inflicted Damage 86 | . 40 . . . . . 46 Shots 1 | . 1 . . . . . . Rammed 36 | . . . . . . . 36 Targets Rammed 36 | . . . . . . . 36 Kicked . | . . . . . . . . Crushed . | . . . . . . . . Highest Temperature 222 | 54 138 . . . 222 . . Average Temperature 44 | 29 29 . . . 99 . . Received Heat Transfer 1125 | . 96 36 . . 747 21 225 Siege Activations . | . . . . . . . . Martial Activations . | . . . . . . . . Shielding Activations . | . . . . . . . . Robots Disrupted . | . . . . . . . . Combat Hostiles . | . . . . . . . . Robots Corrupted 1 | . 1 . . . . . . Combat Hostiles . | . . . . . . . . Parts Fried 1 | . 1 . . . . . . Impact Corruptions 1 | . . . . . . . 1 Robots Melted . | . . . . . . . . Combat Hostiles . | . . . . . . . . Parts Melted 3 | . 3 . . . . . . Heat Transferred 1863 | 250 1021 222 . . 370 . . Parts Sabotaged . | . . . . . . . . Parts Stolen . | . . . . . . . . Parts Stripped . | . . . . . . . . Power Chain Reactions 2 | . 2 . . . . . . Alert | -11 -10 -10 -7 -7 -5 -4 -4 ------- Run | Yrd Mat Sub Rec Scr Fac Fac Gar Maximum Alert Level . | . . . . . . . . Low Security (%) 100 | 100 100 . 100 . 100 100 100 Level 1 . | . . . . . . . . Level 2 . | . . . . . . . . Level 3 . | . . . . . . . . Level 4 . | . . . . . . . . Level 5 . | . . . . . . . . High Security . | . . . . . . . . Max Security . | . . . . . . . . Peak Influence 172 | 10 172 . 78 . 160 50 155 Initial 50 | . . . . . . 50 . Average 46 | 2 83 . 19 . 36 18 63 Influence Increases 1297 | 20 420 70 124 . 416 2 245 Destroy 0b10 Robot/C 620 | . 280 60 20 . 200 . 60 Destroy 0b10 Robot/NC 40 | 20 5 . . . 15 . . Destroy Leader 134 | . 72 10 . . 42 . 10 Allied During Kill 1 | . . . 1 . . . . Successful Hack 38 | . 11 . 11 . . . 16 Select Force Hacks 90 | . . . 90 . . . . Anti-Garrison Action 100 | . . . . . . . 100 Destroy Structure 124 | . 22 . 2 . 84 2 14 Lose Combat Pursuer 150 | . 30 . . . 75 . 45 Influence Decreases 1142 | 20 404 86 124 . 312 106 90 Entered New Map 62 | . . 8 . . . 54 . Time Decay 739 | 20 301 68 110 . 198 42 . Lost Part 234 | . 10 10 . . 114 10 90 Lost Ally 14 | . . . 14 . . . . Purge Threat 93 | . 93 . . . . . . Squads Dispatched 9 | . 3 . . . 3 3 . Investigation 5 | . 1 . . . 1 3 . Extermination 2 | . . . . . 2 . . Reinforcement 2 | . 2 . . . . . . Assault . | . . . . . . . . Garrison . | . . . . . . . . Intercept . | . . . . . . . . Searches Triggered . | . . . . . . . . Construction Impeded . | . . . . . . . . Haulers Reinforced . | . . . . . . . . Active Scanning Responses . | . . . . . . . . Cargo Convoy Interrupts . | . . . . . . . . Stealth | -11 -10 -10 -7 -7 -5 -4 -4 --------- Run | Yrd Mat Sub Rec Scr Fac Fac Gar Distress Signals 3 | . 2 . . . 1 . . Communications Jammed . | . . . . . . . . Distress Signals . | . . . . . . . . Times Spotted 84 | . 25 12 1 . 23 12 11 Peak Tracking Total 11 | . 6 4 1 . 5 11 7 Tactical Retreats 7 | . 2 . . . 3 . 2 Traps | -11 -10 -10 -7 -7 -5 -4 -4 ------- Run | Yrd Mat Sub Rec Scr Fac Fac Gar Traps Triggered 5 | . 1 . . . . . 4 Indirectly . | . . . . . . . . Trap Hack Attempts . | . . . . . . . . Triggered . | . . . . . . . . Disarmed . | . . . . . . . . Reprogrammed . | . . . . . . . . Reused . | . . . . . . . . Traps Extracted . | . . . . . . . . Installed . | . . . . . . . . Triggered . | . . . . . . . . Machines | -11 -10 -10 -7 -7 -5 -4 -4 ---------- Run | Yrd Mat Sub Rec Scr Fac Fac Gar Machines Disabled 1 | . . . . . . . 1 Max in Single Turn 1 | . . . . . . . 1 Garrison Relay 1 | . . . . . . . 1 Machines Repaired . | . . . . . . . . Machines Dismantled 1 | . . . . . . . 1 Machines Sabotaged . | . . . . . . . . Overloaded Fab Kills . | . . . . . . . . Hacking | -11 -10 -10 -7 -7 -5 -4 -4 --------- Run | Yrd Mat Sub Rec Scr Fac Fac Gar Machines Accessed 23 | . 7 . 7 3 1 4 1 Terminals 10 | . 5 . 3 . 1 . 1 Fabricators . | . . . . . . . . Repair Stations 2 | . 1 . . . . 1 . Recycling Units 7 | . 1 . 4 . . 2 . Scanalyzers . | . . . . . . . . Garrison Access 1 | . . . . . . 1 . Total Hacks 51 | . 19 . 14 8 2 5 3 Successful 30 | . 11 . 6 8 . 4 1 Failed 21 | . 8 . 8 . 2 1 2 Catastrophic 5 | . . . 3 . 1 . 1 Database Lockouts . | . . . . . . . . Manual 34 | . 17 . 14 . . 3 . Terminals 25 | . 16 . 4 . 2 . 3 Fabricators . | . . . . . . . . Repair Stations 3 | . 1 . . . . 2 . Recycling Units 14 | . 2 . 10 . . 2 . Scanalyzers . | . . . . . . . . Garrison Access 1 | . . . . . . 1 . Terminal Hacks 10 | . 1 . . 8 . . 1 Record 8 | . . . . 8 . . . Unreport Threat 1 | . 1 . . . . . . Security Stations 1 | . . . . . . . 1 Fabricator Hacks . | . . . . . . . . Repair Station Hacks . | . . . . . . . . Recycling Unit Hacks . | . . . . . . . . Scanalyzer . | . . . . . . . . Garrison Access Hacks 1 | . . . . . . 1 . Unlock Access 1 | . . . . . . 1 . Unauthorized Hacks 18 | . 10 . 5 . . 3 . Terminals 8 | . 8 . . . . . . Botnet 3 | . 3 . . . . . . Skim 5 | . 5 . . . . . . Fabricators . | . . . . . . . . Repair Stations 2 | . 1 . . . . 1 . Patch 2 | . 1 . . . . 1 . Recycling Units 8 | . 1 . 5 . . 2 . Recyclers 2 | . 1 . 1 . . . . Mask 1 | . . . 1 . . . . Tunnel 3 | . . . 3 . . . . Fedlink 2 | . . . . . . 2 . Scanalyzers . | . . . . . . . . Garrison Access . | . . . . . . . . Data Cores Recovered 1 | . . . . . 1 . . Used . | . . . . . . . . Hacking Detections 13 | . 6 . 4 . 1 1 1 Full Trace Events 2 | . . . . . 1 . 1 Feedback Events . | . . . . . . . . Feedback Blocked . | . . . . . . . . Robot Schematics Acquired . | . . . . . . . . Robots Built . | . . . . . . . . Authchips . | . . . . . . . . Time . | . . . . . . . . Total Robot Build Rating . | . . . . . . . . Part Schematics Acquired . | . . . . . . . . Parts Built . | . . . . . . . . Authchips . | . . . . . . . . Time . | . . . . . . . . Total Part Build Rating . | . . . . . . . . Parts Repaired . | . . . . . . . . Time . | . . . . . . . . Parts Recycled . | . . . . . . . . Recycled Matter . | . . . . . . . . Retrieved Matter . | . . . . . . . . Retrieved Components . | . . . . . . . . Parts Scanalyzed . | . . . . . . . . Part Schematics Acquired . | . . . . . . . . Parts Damaged . | . . . . . . . . Bothacking | -11 -10 -10 -7 -7 -5 -4 -4 ------------ Run | Yrd Mat Sub Rec Scr Fac Fac Gar Used RIF Installer . | . . . . . . . . Robots Hacked . | . . . . . . . . Non-combat . | . . . . . . . . Combat . | . . . . . . . . Robot Hacks Applied . | . . . . . . . . Relay Couplers Released 5 | . . . . . . . 5 Machine Destruction 5 | . . . . . . . 5 Fabnet Peak Effective % . | . . . . . . . . Robots Rewired . | . . . . . . . . Allies Hacked . | . . . . . . . . Hacks Repelled . | . . . . . . . . Allies | -11 -10 -10 -7 -7 -5 -4 -4 -------- Run | Yrd Mat Sub Rec Scr Fac Fac Gar Total Allies 4 | . . 4 . . . . . Largest Group 4 | . . 4 4 . . . . Highest-Rated Group 76 | . . 76 76 . . . . Highest-Rated Ally 19 | . . 19 19 . . . . Total Orders . | . . . . . . . . Ally Attacks 15 | . . 1 14 . . . . Total Damage 279 | . . 19 260 . . . . Kills 1 | . . . 1 . . . . Allies Corrupted . | . . . . . . . . Allies Melted . | . . . . . . . . Intel | -11 -10 -10 -7 -7 -5 -4 -4 ------- Run | Yrd Mat Sub Rec Scr Fac Fac Gar Active Infowar (turns) 5208 | 23 759 565 475 1897 1149 142 198 Optics 595 | . . . . . 255 142 198 Terrain 1312 | 23 94 . . . 1149 46 . Structural 3350 | . 413 565 475 1897 . . . Seismic 252 | . 252 . . . . . . Robot Analysis Total . | . . . . . . . . Derelict Logs Recovered 1 | . . 1 . . . . . Drone Launches . | . . . . . . . . Drone Recoveries . | . . . . . . . . Exploration | -11 -10 -10 -7 -7 -5 -4 -4 ------------- Run | Yrd Mat Sub Rec Scr Fac Fac Gar Turns Passed 6442 | 84 759 780 475 2845 1154 142 203 Spaces Moved 4211 | 40 485 731 398 1704 578 153 122 Core 211 | . . . . 4 156 . 51 Treads . | . . . . . . . . Legs 464 | 40 276 . . . . 77 71 Wheels 3391 | . 209 731 398 1700 353 . . Hover 145 | . . . . . 69 76 . Flight . | . . . . . . . . Fastest Speed 50 | 120 90 90 90 90 50 60 50 Average Speed 129 | 120 107 90 110 163 135 85 88 Slowest Speed 3650 | 120 120 90 115 3650 3500 110 150 Overloaded Moves . | . . . . . . . . Propulsion Burnouts . | . . . . . . . . Robots Hopped . | . . . . . . . . Potential Cave-ins . | . . . . . . . . Cave-ins Triggered . | . . . . . . . . Exploration Rate (%) 41 | 4 90 46 57 93 17 9 13 Regions Visited 7 Branch Regions 3 Pre-discovered Areas 4 | . . . 3 . . 1 . Known Exits Taken 1 | . . . . . . 1 . Unknown Exits Taken 6 | 1 1 1 1 1 1 . . Scrap Searched 18 | . . 13 . 5 . . . Spaces Dug 31 | . 16 1 2 . 9 1 2 Terrain Destroyed 76 | . 22 1 2 . 48 1 2 Melee 15 | . . 1 2 . 9 1 2 Projectile 16 | . 16 . . . . . . AOE 45 | . 6 . . . 39 . . Terrain Rammed . | . . . . . . . . Walls Destroyed . | . . . . . . . . Machines Disabled . | . . . . . . . . Actions | -11 -10 -10 -7 -7 -5 -4 -4 --------- Run | Yrd Mat Sub Rec Scr Fac Fac Gar Total 4940 | 57 628 824 433 1773 872 162 191 Wait 361 | . 73 51 17 11 209 . . Move 4205 | 39 484 730 397 1703 577 153 122 Hop . | . . . . . . . . Pick Up 62 | 2 4 5 12 33 6 . . Fast Attach 43 | 1 6 5 1 5 13 5 7 Attach 14 | . 2 . . 1 10 . 1 Detach 7 | . . . . 3 3 . 1 Swap 19 | . 6 5 1 3 4 . . Drop 39 | . 8 10 3 14 . 3 1 Fire 96 | 15 45 14 . . 22 . . Melee 49 | . . 4 2 . 28 1 14 Ram 36 | . . . . . . . 36 Kick . | . . . . . . . . Crush . | . . . . . . . . Escape Stasis 3 | . . . . . . . 3 Rewire 3 | . . . . . . . 3 Trap . | . . . . . . . . Miscellaneous 3 | . . . . . . . 3 Route ------- -11/Scrapyard -10/Materials (discovered 5 exits: [*Mat x3] / [*Min] / [*Sub]) -10/Subcaves (discovered 2 exits: [*Mat] / *Rec) -7/Recycling (discovered 2 exits: *Fac / *Scr) -7/Scraptown (discovered 2 exits: *Fac x2) -5/Factory -4/Factory (discovered 2 exits: [*Upp] / Gar) -4/Garrison History --------- Turn | Location | Event 10 | -11/Scrapyard | Discovered new exit (range 3) 85 | -11/Scrapyard | Entered Materials 170 | -10/Materials | Discovered new exit (range 5) 295 | -10/Materials | Discovered new exit (range 16) 302 | -10/Materials | Build established: Mutant 535 | -10/Materials | Discovered new exit (range 10) 824 | -10/Materials | Discovered new exit (range 15) 828 | -10/Materials | Discovered new exit (range 8) 844 | -10/Materials | Entered Subcaves 845 | -10/Subcaves | Approached by a straggling Scientist 1108 | -10/Subcaves | Learned Materials terminal intel 1116 | -10/Subcaves | Visited triangular shrine 1122 | -10/Subcaves | Found Prototype Device 1122 | -10/Subcaves | Identified V3-11A's Pendant 1127 | -10/Subcaves | Befriended Subdweller 1161 | -10/Subcaves | Disturbed a concealed Subdweller 1162 | -10/Subcaves | Befriended Subdweller 1353 | -10/Subcaves | Befriended Subdweller 1353 | -10/Subcaves | Befriended Subdweller 1536 | -10/Subcaves | Discovered new exit (range 16) 1559 | -10/Subcaves | Shifting Twisted Machinery released Flamer 1599 | -10/Subcaves | Discovered new exit (range 10) 1624 | -10/Subcaves | Entered Recycling 1624 | -7/Recycling | Accompanied by 4 allies 1666 | -7/Recycling | Lost 3 allies 1903 | -7/Recycling | Discovered new exit (range 15) 2072 | -7/Recycling | Scanned before Scraplab entrance 2085 | -7/Recycling | Discovered new exit (range 11) 2099 | -7/Recycling | Entered Scraptown 2535 | -7/Scraptown | Discovered new exit (range 11) 2632 | -7/Scraptown | Visited Cyclists 2686 | -7/Scraptown | Visited Spacefarers 2747 | -7/Scraptown | Visited The Evicted 2799 | -7/Scraptown | Delivered V3-11A's Pendant to T0-NE2 in exchange for information 2906 | -7/Scraptown | Visited Shadow of the Wyrm 2934 | -7/Scraptown | Visited CR-KLE's Repair Center 2959 | -7/Scraptown | Visited Fellowship of the Rings 3007 | -7/Scraptown | Visited Assassins FH 3344 | -7/Scraptown | Visited UFD Registry 3344 | -7/Scraptown | Registered with UFD as "Gaussbay" 3391 | -7/Scraptown | Visited Chapter 10 3440 | -7/Scraptown | Visited Supply Room 3662 | -7/Scraptown | Visited LU-1G1's Boring Crew 3738 | -7/Scraptown | Visited Derelict Rescue Squad 3748 | -7/Scraptown | Found DRS Beacon 3785 | -7/Scraptown | Visited Junk Repository 3863 | -7/Scraptown | Visited Modified Component R&D 3906 | -7/Scraptown | Visited Scrapoid Pod Storage 4286 | -7/Scraptown | Build established: Hauler-Mutant 4319 | -7/Scraptown | Found Scrapoid Pod 4363 | -7/Scraptown | Visited Scrap Suit Storage 4378 | -7/Scraptown | Found Scrap Suit 4383 | -7/Scraptown | Found Scrap Suit 4394 | -7/Scraptown | Found Scrap Suit 4459 | -7/Scraptown | Visited Supply Room 4828 | -7/Scraptown | Met Optimus 4828 | -7/Scraptown | Accepted into 0bPrime 4938 | -7/Scraptown | Discovered new exit (range 3) 4944 | -7/Scraptown | Entered Factory 4944 | -5/Factory | Evolved 10 slots: Power x1, Propulsion x2, Utility x6, Weapon x1 5684 | -5/Factory | Build established: Hauler-Gladiator 5836 | -5/Factory | Core integrity fell below 50% 5859 | -5/Factory | Lost 9 parts (1p2n4u2w) 5911 | -5/Factory | System corruption reached 10% 5926 | -5/Factory | Core integrity fell below 20% 6032 | -5/Factory | Discovered new exit (range 14) 6098 | -5/Factory | Entered another Factory area 6098 | -4/Factory | Evolved 2 slots: Utility x2 6127 | -4/Factory | Loaded intel: 8 recycling unit locations 6129 | -4/Factory | Discovered new exit (range 8) 6226 | -4/Factory | Learned location of Protoforge (-2) 6240 | -4/Factory | Identified exit to Garrison 6240 | -4/Factory | Entered Garrison 6352 | -4/Garrison | Triggered checkpoint 6361 | -4/Garrison | Garrison Relay disabled 6389 | -4/Garrison | Core integrity fell below 50% 6402 | -4/Garrison | Learned Factory security intel 6422 | -4/Garrison | Lost 7 parts (1p2n2u2w) 6429 | -4/Garrison | Build established: Mutant 6435 | -4/Garrison | Core integrity fell below 20% 6443 | -4/Garrison | Destroyed by Y-64 Sentinel with Wave Gun Last Messages --------------- 06437_ Penetrated by Slug. 06438_ Slammed into S-27 Virus. 06438_ Destroyed VTOL Module. 06438_ S-27 Virus system corrupted by crushing effect. 06438_ S-27 Virus destroyed. 06438_ Destabilizing: System interference. 06438_ Enh. Optical Array temporarily disabled. 06439_ Penetrated by Slug. 06440_ Slammed into Y-64 Sentinel. 06440_ Destabilizing: System interference. 06440_ Adv. Signal Interpreter temporarily disabled. 06440_ Imp. Target Analyzer temporarily disabled. 06440_ Penetrated by Slug. 06441_ Slammed into Y-64 Sentinel. 06441_ Destabilizing: System corrupted (+1). 06442_ Acquired VTOL Module. 06443_ Critical hit (Burn: +37). Map ----- +----------------------------------------------------+ | ?????????????????????????????????????????????????? | | ?????????????????????????????????????????????????? | | ?????????????????????????????????????????????????? | | ?????????????????????????????????????????????????? | | ?????????????????????????????????????????????????? | | ?????????????????????????????????????????????????? | | ?????????????????????????????????????????????????? | | ?????????????????????????????????????????????????? | | ?????????????????????????????????????????????????? | | ?????????????????????????????????????????????????? | | ?????????????????????????????????????????????????? | | ?????????????????????????????????????????????????? | | ????????????????###??????????????????????????????? | | ????????????????#!###????????????????????????????? | | ?????????######?#+#"#???####?????????????????????? | | ????????## ### ="#???#""#?????????????????????? | | ????????# *!!%#???#T #?????????????????????? | | ????????# ##[ #???#" #?????????????????????? | | ????????# ## # #???##*#?????????????????????? | | ????????## ### ###???##%##????????????????????? | | ?????????######?# #?????#!%!#????????????????????? | | ????????????????# #?????#!%!#????????????????????? | | ????????????????# #?????#!%!#????????????????????? | | ??????????????### #?????#!%!#????????????????????? | | ??????????????# ########Y##????????????????????? | | ??????????????# [@Y#?????????????????????? | | ??????????????# ##########?????????????????????? | | ??????????????### #??????????????????????????????? | | ####????????????# #??????????????????????????????? | | "#??????####### ##?##??????????????????????????? | | ######### + ?????????????????????????? | | [ = ######??????????????????????????????? | | %%= #???????????????????????????????????? | | ######"#### #???????????????????????????????????? | | ?????# #??# #???????????????????????????????????? | | ?????# #### #???????????????????????????????????? | | ?????# " #???????????????????????????????????? | | ?????###### #???????????????????????????????????? | | ?????????#" #???????????????????????????????????? | | ?????????## #???????????????????????????????????? | | ??????????# ^#???????????????????????????????????? | | ??????????# #???????????????????????????????????? | | ??????????# ???????????????????????????????????? | | ??????????# ??????????????????????????????????? | | ??????????######?????????????????????????????????? | | ?????????????????????????????????????????????????? | | ?????????????????????????????????????????????????? | | ?????????????????????????????????????????????????? | | ?????????????????????????????????????????????????? | | ?????????????????????????????????????????????????? | +----------------------------------------------------+ Best States ------------- Heat Dissipation 43 Energy Generation 27 Energy Capacity 360 Matter Stores 300 Matter Capacity 300 Sight Range 22 Terrain Scan Range 16 Terrain Scan Density 110 Additional Mass Support 9 Armor Coverage 225 Utility Shielding 66 Evasion (%) 55 Melee Accuracy 8 Target Analysis 9 Core Analysis 6 Offensive Hacking 10 Authchip Count 9 Item Schematics ----------------- None Robot Schematics ------------------ None Fabricated ------------ Nothing Repaired ---------- Nothing Alien Tech Used ----------------- None Achievements -------------- None Challenges ------------ None Game ------ Seed OmegaCooledCleaver Manual? 0 Play Time 01:08:22 Cumulative 144.0 hours Start 2025.07.14 @ 20:08:13 End 2025.07.14 @ 21:18:24 Sessions 1 Manual Loads 0 Difficulty Rogue Special Mode None Game No. 143 Rogue 141 Adventurer 2 Explorer 0 Win Type - Total 0 Types 0/0/0/0/0/0/0/0/0/0 Lore% 63 Gallery% 56 Achievement% 44 Wizard Run 0 Options --------- Layout 2 ASCII 0 Keyboard 1 Movement Numpad Keybinds 0 Fullscreen 1 Font 48/Smallcaps Map View 50x66 Zoom Use 0% Tactical HUD 1 Map Filters NONE Filters NONE Steam 1 RUN: c051322e-8468-47c3-a230-eb84c7214387